bitfinex/quotes_SOLUSD_20220113
["timestamp","ask_amount","ask_price","bid_price","bid_amount"]
[1642033224499,24.2839,151.62,151.56,2.13675333]
[1642033224703,0.25,151.62,151.57,9.8941]
[1642033225100,34.1102,151.64,151.57,9.8941]
[1642033225303,0.26,151.63,151.57,9.8941]
[1642033226602,0.26,151.63,151.55,10.1448]
[1642033226800,16.1553,151.63,151.54,0.26]
[1642033227002,66.04,151.62,151.55,2.638]
[1642033227301,0.25,151.62,151.55,0.25]
[1642033227702,24.39483166,151.61,151.55,0.25]
[1642033227903,0.26,151.6,151.55,0.25]
[1642033228301,0.26,151.6,151.54,2.888]
[1642033230508,0.26,151.6,151.54,12.784]
[1642033230706,10.1465,151.61,151.54,12.784]
[1642033230907,10.1465,151.61,151.55,0.26]
[1642033233934,0.26,151.6,151.54,0.25]
[1642033234133,0.26,151.6,151.53,12.7847]
[1642033234336,0.26,151.6,151.53,10.1467]
[1642033234634,23.2216,151.6,151.53,10.1467]
[1642033235034,23.4716,151.6,151.53,10.1467]
[1642033236542,2.638,151.61,151.54,0.26]
[1642033236842,26.9547,151.64,151.54,12.7936]
[1642033237039,26.9547,151.64,151.54,14.39807642]
[1642033237242,0.26,151.63,151.54,14.64807642]
[1642033237442,26.9547,151.64,151.54,14.64807642]
[1642033238044,26.9547,151.64,151.58,9.8931]
[1642033238243,24.3167,151.64,151.58,10.1431]
[1642033238443,24.3167,151.64,151.59,0.26]
[1642033238846,12.5305,151.68,151.59,1.86447642]
[1642033239045,23.1552,151.67,151.59,1.86447642]
[1642033239246,23.1552,151.67,151.6,23.20296268]
[1642033239448,9.8925,151.68,151.6,23.20296268]
[1642033239653,0.25,151.68,151.61,0.26]
[1642033240648,2.887,151.69,151.61,0.26]
[1642033240849,0.25,151.69,151.61,0.26]
[1642033241248,0.26,151.69,151.61,0.26]
[1642033241448,51.096,151.7,151.63,9.89]
[1642033241449,50.846,151.7,151.63,9.89]
[1642033241651,4.94285433,151.72,151.63,10.14]
[1642033241854,4.94285433,151.72,151.64,2.897]
[1642033242053,4.94285433,151.72,151.64,0.26]
[1642033242349,4.94285433,151.72,151.64,0.51]
[1642033242550,4.94285433,151.72,151.66,9.888]
[1642033242749,5.19285433,151.72,151.66,9.888]
[1642033242950,5.19285433,151.72,151.67,0.26]
[1642033243377,3.327643,151.72,151.67,0.26]
[1642033244054,3.327643,151.72,151.66,9.888]
[1642033244254,3.327643,151.72,151.64,2.886]
[1642033244255,3.327643,151.72,151.64,12.7749]
[1642033244558,13.217043,151.72,151.64,12.7749]
[1642033244754,13.217043,151.72,151.64,10.1389]
[1642033245056,6.0,151.71,151.64,10.1389]
[1642033245255,6.26,151.71,151.64,0.25]
[1642033245657,6.26,151.71,151.63,2.887]
[1642033246461,16.1502,151.71,151.63,12.7772]
[1642033246657,16.4002,151.71,151.63,12.7772]
[1642033246862,19.0372,151.71,151.63,0.25]
[1642033247263,19.0372,151.71,151.62,76.8542]
[1642033247463,16.4002,151.71,151.62,76.8542]
[1642033247663,40.2784,151.71,151.62,76.8542]
[1642033248064,40.2784,151.71,151.62,112.41288024]
[1642033250367,40.2784,151.71,151.63,0.26]
[1642033250767,40.2784,151.71,151.63,10.15]
[1642033250990,40.2784,151.71,151.63,10.4]
[1642033251995,40.2784,151.71,151.63,10.14]
[1642033252195,40.2784,151.71,151.63,0.25]
[1642033252593,40.2784,151.71,151.62,99.88508024]
[1642033252793,40.2784,151.71,151.62,102.52208024]
[1642033253395,40.2784,151.71,151.62,112.41288024]
[1642033253594,34.0284,151.71,151.62,112.41288024]
[1642033253995,24.1382,151.71,151.62,112.41288024]
[1642033254801,24.1382,151.71,151.63,0.26]
[1642033254999,23.8782,151.71,151.65,9.8888]
[1642033255200,23.8782,151.71,151.65,10.1388]
[1642033255402,23.8782,151.71,151.66,0.26]
[1642033255903,23.8782,151.71,151.65,0.25]
[1642033256304,0.26,151.7,151.64,2.637]
[1642033256507,6.26,151.7,151.64,2.887]
[1642033256705,6.26,151.7,151.64,0.25]
[1642033257508,6.26,151.7,151.64,0.51]
[1642033257707,6.26,151.7,151.64,0.26]
[1642033258107,6.0,151.7,151.64,0.26]
[1642033258307,23.8782,151.71,151.64,10.1494]
[1642033258706,6.0,151.7,151.64,10.3994]
[1642033258907,23.8782,151.71,151.64,10.3994]
[1642033259812,23.8782,151.71,151.64,10.1494]
[1642033260008,24.1282,151.71,151.64,10.1494]
[1642033261210,24.1282,151.71,151.64,10.3994]
[1642033261809,24.1282,151.71,151.64,9.8894]
[1642033262010,6.26,151.7,151.63,2.637]
[1642033262210,9.147,151.7,151.62,109.52548024]
[1642033263311,3.147,151.7,151.63,0.26]
[1642033263513,13.0381,151.7,151.63,0.26]
[1642033264213,3.147,151.7,151.63,10.1501]
[1642033264415,3.147,151.7,151.63,10.4001]
[1642033264416,2.887,151.7,151.63,10.4001]
[1642033264614,0.25,151.7,151.63,10.4001]
[1642033265017,24.1282,151.71,151.63,10.4001]
[1642033266314,23.8782,151.71,151.63,10.4001]
[1642033266518,2.637,151.73,151.64,17.09939487]
[1642033266715,24.39991133,151.75,151.65,2.637]
[1642033266917,0.26,151.74,151.68,9.8859]
[1642033267117,6.26,151.74,151.68,9.8859]
[1642033267316,22.5347,151.75,151.69,0.26]
[1642033267521,22.5347,151.75,151.69,28.91730938]
[1642033267719,22.7847,151.75,151.69,29.17730938]
[1642033268617,22.7847,151.75,151.69,39.06360938]
[1642033269645,6.0,151.74,151.69,39.06360938]
[1642033269847,22.7847,151.75,151.69,39.06360938]
[1642033270250,22.7847,151.75,151.69,29.17730938]
[1642033270451,6.0,151.74,151.69,29.17730938]
[1642033270850,6.0,151.74,151.69,0.26]
[1642033271053,0.26,151.73,151.65,4.51375333]
[1642033271249,26.9963,151.73,151.65,4.51375333]
[1642033271456,6.0,151.72,151.65,2.637]
[1642033271655,6.25,151.72,151.64,1.87675333]
[1642033271853,35.62802051,151.71,151.64,1.87675333]
[1642033272153,15.8915,151.7,151.64,1.87675333]
[1642033272454,2.897,151.69,151.6,4.51375333]
[1642033272656,3.147,151.69,151.6,4.51375333]
[1642033272854,6.0,151.68,151.6,4.76375333]
[1642033273057,2.637,151.69,151.61,1.59939487]
[1642033273254,22.6913,151.71,151.62,2.637]
[1642033273454,1.86521133,151.73,151.65,9.8886]
[1642033273659,1.86521133,151.72,151.65,10.1386]
[1642033273855,1.86521133,151.72,151.66,0.26]
[1642033274058,1.86521133,151.72,151.66,31.51080166]
[1642033274256,1.86521133,151.72,151.66,38.23580166]
[1642033274456,1.86521133,151.72,151.66,6.985]
[1642033274666,2.11521133,151.72,151.66,6.735]
[1642033274858,2.636,151.74,151.66,6.735]
[1642033275057,2.636,151.74,151.66,6.985]
[1642033275261,0.26,151.73,151.66,6.985]
[1642033275456,0.26,151.73,151.66,27.16701468]
[1642033275970,0.51,151.74,151.66,37.05471468]
[1642033276162,0.26,151.74,151.66,37.05471468]
[1642033276961,24.8853,151.75,151.66,37.05471468]
[1642033278164,24.8853,151.75,151.7,9.8853]
[1642033280163,24.8853,151.75,151.68,9.8865]
[1642033280363,24.8853,151.75,151.68,0.26]
[1642033280566,24.8853,151.75,151.68,0.51]
[1642033281363,2.896,151.74,151.67,9.8871]
[1642033281565,2.896,151.74,151.66,26.65701468]
[1642033281863,0.51,151.74,151.66,26.65701468]
[1642033282063,0.51,151.74,151.66,26.90701468]
[1642033282666,0.26,151.74,151.66,26.90701468]
[1642033282866,2.896,151.74,151.66,26.90701468]
[1642033283068,2.896,151.74,151.66,36.79521468]
[1642033283266,3.146,151.74,151.66,36.79521468]
[1642033283472,23.214,151.73,151.66,36.79521468]
[1642033283668,23.464,151.73,151.67,0.26]
[1642033283868,23.464,151.73,151.66,36.79521468]
[1642033285369,23.464,151.73,151.67,0.26]
[1642033285573,23.464,151.73,151.67,10.1473]
[1642033286672,23.214,151.73,151.67,10.1473]
[1642033286870,23.214,151.73,151.67,10.3973]
[1642033287071,23.214,151.73,151.68,2.636]
[1642033287270,23.214,151.73,151.69,9.886]
[1642033287473,23.214,151.73,151.69,10.146]
[1642033292608,4.50121133,151.77,151.69,15.928]
[1642033292807,22.8736,151.76,151.69,16.178]
[1642033294110,4.50121133,151.78,151.7,6.0]
[1642033294309,1.86521133,151.78,151.72,9.8837]
[1642033294511,1.86521133,151.78,151.73,0.26]
[1642033294709,1.86521133,151.78,151.72,29.63805815]
[1642033295011,1.86521133,151.78,151.73,6.26]
[1642033295309,1.86521133,151.79,151.73,6.26]
[1642033295710,2.11521133,151.79,151.73,16.1436]
[1642033295912,0.25,151.79,151.73,9.8836]
[1642033296110,0.26,151.78,151.69,76.5174]
[1642033296309,2.896,151.78,151.69,76.5174]
[1642033296510,23.506,151.77,151.69,76.5174]
[1642033296710,23.756,151.77,151.69,76.5174]
[1642033296913,0.26,151.76,151.69,86.4032]
[1642033297517,0.26,151.76,151.7,0.26]
[1642033297711,2.636,151.78,151.7,0.26]
[1642033297912,4.50121133,151.78,151.71,2.636]
[1642033298111,4.50121133,151.78,151.72,81.54]
[1642033298313,1.86521133,151.78,151.73,2.634]
[1642033298615,1.86521133,151.78,151.74,15.76]
[1642033298813,3.73042266,151.82,151.75,33.31240871]
[1642033299013,24.83681133,151.85,151.76,9.76]
[1642033299212,24.83681133,151.85,151.76,10.01]
[1642033299714,22.9716,151.85,151.76,10.01]
[1642033300215,25.6056,151.85,151.76,10.01]
[1642033300414,25.6056,151.85,151.76,19.8905]
[1642033301814,35.4875,151.85,151.76,19.8905]
[1642033302017,0.26,151.82,151.76,10.01]
[1642033302818,0.26,151.82,151.76,9.5]
[1642033305528,0.26,151.82,151.76,19.3817]
[1642033308053,0.26,151.82,151.76,19.6317]
[1642033308856,3.077643,151.83,151.78,9.8802]
[1642033310156,3.077643,151.83,151.79,29.08270944]
[1642033311156,3.077643,151.83,151.78,9.8802]
[1642033311365,3.077643,151.83,151.78,12.7642]
[1642033312359,3.077643,151.83,151.78,12.5142]
[1642033313358,3.077643,151.83,151.78,9.8802]
[1642033315966,3.077643,151.83,151.79,0.26]
[1642033316863,3.077643,151.83,151.79,10.1397]
[1642033317068,3.077643,151.83,151.79,9.8797]
[1642033317266,3.077643,151.83,151.79,2.884]
[1642033317463,3.077643,151.83,151.78,2.634]
[1642033317662,3.077643,151.83,151.78,2.884]
[1642033318464,3.077643,151.83,151.79,0.26]
[1642033320467,3.077643,151.83,151.79,10.1396]
[1642033321164,3.077643,151.83,151.8,6.0]
[1642033321367,3.077643,151.83,151.8,8.634]
[1642033321569,3.077643,151.83,151.81,10.1385]
[1642033321767,3.077643,151.83,151.82,2.634]
[1642033322066,3.077643,151.83,151.82,8.634]
[1642033322270,3.077643,151.83,151.82,8.884]
[1642033322466,3.077643,151.83,151.82,9.144]
[1642033322666,3.077643,151.83,151.82,16.3874]
[1642033330976,3.077643,151.83,151.82,10.1274]
[1642033331175,3.077643,151.83,151.81,2.634]
[1642033332777,3.077643,151.83,151.81,0.25]
[1642033332977,3.077643,151.83,151.82,9.8767]
[1642033333410,3.077643,151.83,151.82,10.1367]
[1642033334007,3.077643,151.83,151.82,16.1367]
[1642033334908,3.077643,151.83,151.82,10.1367]
[1642033335714,6.10984297,151.83,151.82,9.8767]
[1642033335912,3.077643,151.83,151.8,19.6125]
[1642033336409,3.077643,151.83,151.8,9.7344]
[1642033337011,3.077643,151.83,151.8,19.613]
[1642033337215,3.077643,151.83,151.8,19.863]
[1642033338115,3.077643,151.83,151.81,0.26]
[1642033340312,3.077643,151.83,151.81,10.1381]
[1642033340513,3.077643,151.83,151.81,10.3881]
[1642033341714,3.077643,151.83,151.81,13.0221]
[1642033343719,3.077643,151.83,151.81,12.7721]
[1642033345219,3.077643,151.83,151.81,13.0221]
[1642033345421,3.077643,151.83,151.82,6.0]
[1642033345617,3.077643,151.83,151.82,6.25]
[1642033345824,3.077643,151.83,151.82,16.3873]
[1642033348521,3.077643,151.83,151.82,10.3873]
[1642033348719,3.077643,151.83,151.82,10.1273]
[1642033349219,3.077643,151.83,151.82,16.1273]
[1642033350018,3.077643,151.83,151.82,16.3873]
[1642033351924,3.077643,151.83,151.82,16.1273]
[1642033352122,3.077643,151.83,151.82,6.25]
[1642033352322,3.077643,151.83,151.82,0.25]
[1642033352721,3.077643,151.83,151.81,0.25]
[1642033353121,3.077643,151.83,151.81,6.0]
[1642033353322,3.077643,151.83,151.81,6.25]
[1642033353928,3.077643,151.83,151.82,0.26]
[1642033356626,3.077643,151.83,151.81,0.26]
[1642033357231,3.077643,151.83,151.82,9.8775]
[1642033357426,3.077643,151.83,151.82,10.1375]
[1642033357726,3.077643,151.83,151.82,10.3875]
[1642033358926,3.077643,151.83,151.82,16.3875]
[1642033360927,3.077643,151.83,151.82,25.8875]
[1642033364832,3.077643,151.83,151.82,91.9275]
[1642033365032,3.077643,151.83,151.82,25.6275]
[1642033365431,9.41e-05,151.84,151.82,25.6275]
[1642033365630,9.41e-05,151.84,151.83,6.0]
[1642033365833,9.41e-05,151.84,151.83,25.3746]
[1642033366031,9.41e-05,151.84,151.83,25.6246]
[1642033366435,9.41e-05,151.84,151.83,25.8846]
[1642033370362,9.41e-05,151.84,151.83,9.75]
[1642033370560,6.06439411,151.84,151.83,0.0001]
[1642033370760,6.06439411,151.84,151.81,9.8774]
[1642033370961,6.06439411,151.84,151.8,9.7344]
[1642033371160,6.06439411,151.84,151.81,6.0]
[1642033371367,6.06439411,151.84,151.8,9.7344]
[1642033371765,6.06430001,151.84,151.8,9.7344]
[1642033372262,6.06430001,151.84,151.8,9.9844]
[1642033372462,6.06430001,151.84,151.8,19.8629]
[1642033372663,3.03210004,151.84,151.8,19.8629]
[1642033372862,2.634,151.86,151.8,19.8629]
[1642033374069,0.16818021,151.85,151.8,22.4969]
[1642033374265,0.16818021,151.85,151.81,0.26]
[1642033374469,0.16818021,151.85,151.81,10.1373]
[1642033374666,0.16818021,151.85,151.81,10.3873]
[1642033375567,0.16818021,151.85,151.82,74.674]
[1642033375766,0.16818021,151.85,151.84,42.8734]
[1642033375966,0.16818021,151.85,151.84,61.2674]
[1642033376169,0.16818021,151.85,151.84,63.11437732]
[1642033376367,0.16818021,151.85,151.84,30.11437732]
[1642033376573,0.16818021,151.85,151.84,57.38816346]
[1642033376968,0.16818021,151.85,151.84,30.11437732]
[1642033377168,0.16818021,151.85,151.84,25.6334]
[1642033377369,0.16818021,151.85,151.84,6.0]
[1642033377571,0.16818021,151.85,151.83,9.8767]
[1642033377769,0.16818021,151.85,151.83,10.1267]
[1642033378370,0.16818021,151.85,151.83,9.8767]
[1642033379073,0.16818021,151.85,151.82,9.8774]
[1642033379270,0.16818021,151.85,151.82,15.8774]
[1642033380175,6.06430001,151.84,151.83,0.053055]
[1642033380372,0.16818021,151.85,151.83,9.929655]
[1642033380571,0.16818021,151.85,151.83,19.429655]
[1642033380773,0.16818021,151.85,151.83,21.27663232]
[1642033380972,0.16818021,151.85,151.83,19.679655]
[1642033381576,0.16818021,151.85,151.83,19.429655]
[1642033381775,0.16818021,151.85,151.83,19.679655]
[1642033382474,0.16818021,151.85,151.84,10.1354]
[1642033382676,0.16818021,151.85,151.84,13.0194]
[1642033384177,0.16818021,151.85,151.84,10.3854]
[1642033385677,0.16818021,151.85,151.84,32.56337732]
[1642033388883,0.16818021,151.85,151.84,35.19737732]
[1642033389084,0.16818021,151.85,151.84,30.11637732]
[1642033389885,0.16818021,151.85,151.84,27.48237732]
[1642033392587,0.16818021,151.85,151.84,27.22237732]
[1642033394417,23.38288021,151.9,151.84,27.48237732]
[1642033394614,23.38288021,151.9,151.85,6.0]
[1642033394815,23.38288021,151.9,151.87,9.8739]
[1642033395017,6.06430001,151.89,151.88,0.26]
[1642033395616,6.06430001,151.89,151.87,0.25]
[1642033395815,6.06430001,151.89,151.88,9.8734]
[1642033396015,23.38288021,151.9,151.88,10.1334]
[1642033396215,23.38288021,151.9,151.88,10.1234]
[1642033396416,23.38288021,151.9,151.88,9.8734]
[1642033396617,2.633,151.94,151.88,10.1234]
[1642033397416,2.633,151.94,151.89,0.26]
[1642033397616,127.53851133,151.95,151.89,10.1327]
[1642033397816,2.632,151.94,151.89,10.1327]
[1642033398016,49.34681133,151.95,151.89,10.3827]
[1642033398216,47.4816,151.95,151.89,10.3827]
[1642033402626,47.7316,151.95,151.89,10.1327]
[1642033403224,2.632,151.94,151.89,10.1327]
[1642033404729,2.632,151.94,151.89,10.3827]
[1642033404927,50.1146,151.95,151.89,10.3827]
[1642033405930,47.4816,151.95,151.89,10.3827]
[1642033407030,47.4816,151.95,151.89,0.51]
[1642033407233,47.4816,151.95,151.88,0.26]
[1642033408532,47.4816,151.95,151.88,10.1335]
[1642033408733,47.4816,151.95,151.88,10.3835]
[1642033410139,47.7316,151.95,151.88,10.3835]
[1642033410936,2.633,151.94,151.88,10.3835]
[1642033411337,0.26,151.93,151.87,2.633]
[1642033411538,0.26,151.93,151.87,2.883]
[1642033412336,24.2946,151.93,151.87,2.883]
[1642033412741,24.2946,151.93,151.87,0.25]
[1642033412939,24.2946,151.93,151.86,12.7571]
[1642033413139,20.73232487,151.92,151.86,2.633]
[1642033413336,29.36532487,151.92,151.85,8.633]
[1642033413538,0.26,151.91,151.85,8.633]
[1642033413737,0.26,151.91,151.85,2.633]
[1642033414940,0.26,151.91,151.85,2.883]
[1642033415340,0.26,151.91,151.85,12.7584]
[1642033415539,2.633,151.92,151.85,10.1254]
[1642033415739,24.0346,151.93,151.86,2.893]
[1642033415939,24.0346,151.93,151.86,11.94661305]
[1642033416138,24.0346,151.93,151.88,23.38101063]
[1642033416438,24.0346,151.93,151.9,9.8718]
[1642033416637,24.0346,151.93,151.9,10.1218]
[1642033417339,22.5238,151.95,151.9,10.1218]
[1642033417639,45.5816,151.95,151.9,10.1218]
[1642033418439,45.5816,151.95,151.9,12.7538]
[1642033419842,23.0578,151.95,151.9,12.7538]
[1642033420051,1.86521133,151.97,151.91,17.35261305]
[1642033420246,1.86521133,151.97,151.94,9.8687]
[1642033420445,1.86521133,151.97,151.95,2.892]
[1642033420648,1.86521133,151.97,151.95,9.142]
[1642033420950,3.73042266,152.04,151.96,77.39261305]
[1642033421151,3.73042266,152.04,151.96,21.46981305]
[1642033421351,74.13785665,152.11,151.97,7.59261305]
[1642033421551,25.4363,152.1,151.98,12.13]
[1642033421852,26.96500735,152.09,151.98,14.23261305]
[1642033422050,2.63,152.08,151.99,6.0]
[1642033422652,24.4176,152.07,151.98,9.5]
[1642033422855,2.63,152.06,151.96,9.868]
[1642033423054,9.868,152.05,151.96,9.868]
[1642033423357,24.54730878,152.03,151.96,9.868]
[1642033423556,2.63,152.02,151.96,9.868]
[1642033423853,2.63,152.02,151.96,10.118]
[1642033424355,2.63,152.02,151.97,10.1276]
[1642033424558,27.17730878,152.03,151.97,10.1276]
[1642033424753,27.42730878,152.03,151.97,10.1276]
[1642033425253,27.42730878,152.03,151.97,9.8676]
[1642033425454,0.26,152.02,151.95,21.9986]
[1642033425753,0.26,152.02,151.92,89.29851305]
[1642033425754,2.63,152.01,151.92,89.29851305]
[1642033425957,0.26,152.0,151.93,6.0]
[1642033426553,0.26,152.0,151.92,89.29851305]
[1642033426952,0.26,152.01,151.93,0.26]
[1642033427379,0.26,152.01,151.93,16.1298]
[1642033427579,27.5151,152.02,151.94,1.59261305]
[1642033427779,27.7651,152.02,151.94,1.59261305]
[1642033428080,27.7651,152.02,151.95,6.0]
[1642033428279,27.7651,152.02,151.94,2.63]
[1642033428486,6.0,152.01,151.9,2.63]
[1642033428680,6.0,152.01,151.87,2.63]
[1642033428681,12.132,152.0,151.87,2.63]
[1642033428881,37.3352,152.0,151.85,2.632]
[1642033429080,6.0,151.99,151.85,2.632]
[1642033429282,26.96500735,151.97,151.85,2.632]
[1642033429480,33.0001,151.96,151.85,2.632]
[1642033429681,33.2501,151.96,151.85,2.882]
[1642033429883,9.8754,151.94,151.85,2.882]
[1642033430087,30.1071,151.96,151.85,12.382]
[1642033430283,24.3571,151.96,151.85,12.382]
[1642033430482,0.26,151.95,151.86,0.26]
[1642033430682,0.26,151.95,151.87,2.633]
[1642033431085,10.1345,151.95,151.88,0.26]
[1642033431483,10.3845,151.95,151.88,0.26]
[1642033432685,0.25,151.95,151.88,0.26]
[1642033433084,26.9901,151.96,151.88,0.26]
[1642033433286,24.3571,151.96,151.88,0.26]
[1642033434288,34.2306,151.96,151.89,2.632]
[1642033434487,34.2306,151.96,151.9,0.26]
[1642033434987,24.3571,151.96,151.9,0.26]
[1642033437392,24.1071,151.96,151.9,0.26]
[1642033437593,24.1071,151.96,151.91,2.632]
[1642033437992,24.1071,151.96,151.92,0.26]
[1642033438392,24.1071,151.96,151.91,0.51]
[1642033438595,24.1071,151.96,151.92,2.632]
[1642033438994,24.1071,151.96,151.93,0.26]
[1642033439194,6.06430001,151.95,151.93,0.26]
[1642033439699,22.8415,151.98,151.93,0.26]
[1642033439894,23.0915,151.98,151.93,0.26]
[1642033440900,22.8415,151.98,151.93,0.26]
[1642033441095,22.8415,151.98,151.94,2.632]
[1642033443500,22.8415,151.98,151.93,2.892]
[1642033443700,22.8415,151.98,151.91,2.892]
[1642033444100,22.8415,151.98,151.91,13.0125]
[1642033445929,22.8415,151.98,151.91,22.5125]
[1642033451039,22.8415,151.98,151.91,22.2525]
[1642033451239,23.0915,151.98,151.91,22.2525]
[1642033451439,23.0915,151.98,151.91,22.0025]
[1642033451840,23.0915,151.98,151.91,12.5025]
[1642033452042,23.0915,151.98,151.91,2.632]
[1642033452645,23.0915,151.98,151.91,2.882]
[1642033452943,23.0915,151.98,151.91,0.25]
[1642033453143,23.0915,151.98,151.9,77.112]
[1642033453544,23.0915,151.98,151.91,0.26]
[1642033454845,23.0915,151.98,151.91,2.892]
[1642033455044,23.0915,151.98,151.91,13.0129]
[1642033455045,22.8415,151.98,151.91,13.0129]
[1642033457845,22.8415,151.98,151.94,9.8687]
[1642033458246,22.8415,151.98,151.95,0.26]
[1642033458647,6.06430001,151.97,151.95,0.26]
[1642033458847,6.06430001,151.97,151.93,2.892]
[1642033459048,6.06430001,151.97,151.92,0.51]
[1642033459246,6.06430001,151.97,151.93,12.5016]
[1642033459451,6.06430001,151.97,151.94,0.26]
[1642033463053,56.44741993,152.01,151.94,10.129]
[1642033463251,24.0214,152.0,151.94,10.379]
[1642033463453,24.0214,152.0,151.94,13.011]
[1642033463651,24.0214,152.0,151.94,10.379]
[1642033469259,0.26,151.99,151.94,0.25]
[1642033469660,0.26,151.99,151.93,2.882]
[1642033470462,24.0214,152.0,151.93,12.7516]
[1642033470661,24.0214,152.0,151.94,0.26]
[1642033472294,24.0214,152.0,151.94,10.1289]
[1642033472693,2.632,152.02,151.94,10.3789]
[1642033472891,24.5289,152.04,151.94,19.8789]
[1642033473691,31.3535846,152.03,151.94,85.9189]
[1642033473892,31.3535846,152.03,151.94,19.8789]
[1642033474092,31.3535846,152.03,151.97,9.867]
[1642033474493,31.3535846,152.03,151.98,0.26]
[1642033474693,31.3535846,152.03,151.98,2.89]
[1642033475106,31.3535846,152.03,151.98,3.14]
[1642033475292,31.3535846,152.03,151.98,13.0062]
[1642033475493,31.3535846,152.03,151.98,10.1162]
[1642033475694,31.3535846,152.03,151.99,0.26]
[1642033475894,31.3535846,152.03,151.98,10.1162]
[1642033477196,31.3535846,152.03,151.95,2.63]
[1642033477402,24.1306,152.02,151.95,2.63]
[1642033477597,2.63,152.01,151.95,2.63]
[1642033477798,2.63,152.01,151.96,0.26]
[1642033477997,26.5026,152.02,151.96,0.26]
[1642033478198,23.8706,152.02,151.96,0.26]
[1642033478497,23.8706,152.02,151.96,9.8676]
[1642033478697,23.8706,152.02,151.96,10.1176]
[1642033478997,23.8706,152.02,151.97,0.26]
[1642033479199,23.8706,152.02,151.97,2.89]
[1642033479601,2.63,152.05,151.97,3.14]
[1642033479801,2.63,152.05,151.98,9.8661]
[1642033480003,24.2601,152.09,151.99,2.89]
[1642033480200,24.2601,152.09,151.99,9.14]
[1642033480504,24.2601,152.09,152.0,6.0]
[1642033480703,29.81748168,152.08,152.03,9.8627]
[1642033480910,29.81748168,152.08,152.04,0.26]
[1642033481700,29.81748168,152.08,152.02,0.26]
[1642033481901,32.44748168,152.08,152.02,0.26]
[1642033482111,32.69748168,152.08,151.97,9.5]
[1642033482306,25.1073,152.07,151.94,9.5]
[1642033482505,2.63,152.06,151.94,9.5]
[1642033482703,2.63,152.06,151.95,83.8139]
[1642033482904,24.8473,152.07,151.96,72.04]
[1642033483202,24.8473,152.07,151.99,9.8642]
[1642033483402,2.63,152.06,152.0,0.26]
[1642033484202,2.63,152.06,152.0,10.1238]
[1642033484601,2.63,152.06,152.0,10.3738]
[1642033484802,24.8473,152.07,152.0,13.0048]
[1642033485004,24.8473,152.07,152.0,10.3738]
[1642033486202,24.8473,152.07,152.0,10.1238]
[1642033486604,24.8473,152.07,151.98,12.4948]
[1642033486806,2.89,152.06,151.98,2.88]
[1642033487204,3.14,152.06,151.98,2.88]
[1642033487408,23.0182,152.05,151.98,2.88]
[1642033487810,0.26,152.04,151.98,2.88]
[1642033488008,23.0182,152.05,151.99,0.26]
[1642033488208,2.63,152.07,151.99,0.26]
[1642033488409,0.26,152.06,151.99,0.26]
[1642033489508,0.26,152.06,151.99,10.1245]
[1642033489708,0.26,152.06,151.99,0.51]
[1642033490413,24.7625,152.07,151.99,0.51]
[1642033490609,24.7625,152.07,152.0,2.63]
[1642033491008,24.7625,152.07,152.0,2.88]
[1642033491213,24.7625,152.07,152.01,0.26]